Cogmind - Beta 11 X5 @@@ ROGUE MODE // 2021.07.09 @ 21:55:59 Player: Runia Result: Self-destructed Performance ------------- Evolutions (7) 3500 Regions Visited (14) 2800 Robots Destroyed (127) 635 Value Destroyed (4561) 4561 Prototype IDs (15) 300 Alien Tech Used (0) 0 Bonus (1368) 1368 TOTAL SCORE: 13164 Bonus ------- High Alert Combat Kills 364 Follower Combat Kills 504 Scanned by Researcher 500 Cogmind --------- Core Integrity 106/1300 Matter 241/300 Energy 100/100 System Corruption 13% Temperature Cool (0) Movement Core (50) Location -3/Testing Parts ------- > --- POWER (2) -------- (None) > --- PROPULSION (6) --- (None) > --- UTILITY (10) ----- Advanced Armor Integrity Analyzer > --- WEAPON (3) ------- (None) > --- INVENTORY (5) ---- Advanced Heat Sink Enhanced Optical Array Advanced Terrain Scanner Improved Actuator Array Peak State ------------ > --- POWER ------------ Light Angular Momentum Engine Light Antimatter Reactor > --- PROPULSION ------- Combat Airjet Antigrav System Antigrav System Antigrav System Antigrav System Improved Linear Gravjet > --- UTILITY ---------- Advanced Cooling System Large Storage Unit Advanced Sensor Array Advanced Signal Interpreter Advanced Armor Integrity Analyzer Improved Transmission Jammer Cloaking Device Hacking Suite Hacking Suite Advanced System Shield > --- WEAPON ----------- Hypervelocity Gauss Rifle Hypervelocity Coil Gun Hypervelocity Coil Gun > --- INVENTORY -------- Biometal Medium Treads Biometal Medium Treads Biometal Medium Treads Centrium Wheel Advanced Heat Sink Advanced Terrain Scanner Improved Actuator Array Improved Medium Armor Plating Layered Light Armor Plating System Backup Module Hypervelocity Gauss Rifle Hypervelocity Gauss Rifle Great Axe Great Axe Great Axe [Rating: 119] Favorites ----------- Power Light Angular Momentum Engine Engine Light Angular Momentum Engine Power Core Fission Core Reactor Light Antimatter Reactor Propulsion Antigrav System Treads Light Treads Leg Flexi-carbon Leg Wheel Wheel Hover Unit Antigrav System Utility Hacking Suite Device Improved Transmission Jammer Storage Large Storage Unit Processor Improved Signal Interpreter Hackware Hacking Suite Protection Improved Medium Armor Plating Weapon Hypervelocity Coil Gun Ballistic Gun Hypervelocity Coil Gun Launcher Heavy Missile Launcher Slashing Weapon Scythe Piercing Weapon Spear Build | -11 -10 -9 -8 -7 -6 -6 -5 -5 -5 -5 -5 -4 -3 -3 ------- Run | Scr Mat Mat Mat Fac Fac Ext Fac Was Fac Upp Upp Fac Res Tes Slots Evolved 14 | . . 2 2 2 2 . 2 . . . . 2 2 . Power 1 | . . . . . 1 . . . . . . . . . Propulsion 4 | . . . 2 . 1 . . . . . . 1 . . Utility 8 | . . 2 . 2 . . 1 . . . . 1 2 . Weapon 1 | . . . . . . . 1 . . . . . . . Parts Attached 171 | 2 3 5 9 19 30 12 7 2 46 4 . 1 14 17 Power 30 | . 2 . 1 6 4 4 1 . 5 1 . . 3 3 Engine 21 | . 2 . 1 6 4 4 . . 3 1 . . . . Core 2 | . . . . . . . 1 . . . . . . 1 Reactor 7 | . . . . . . . . . 2 . . . 3 2 Propulsion 47 | 2 . 1 4 4 10 3 2 1 12 . . 1 1 6 Treads 14 | 2 . 1 . . 3 . 2 . 1 . . . . 5 Leg 3 | . . . . . 1 1 . . 1 . . . . . Wheel 10 | . . . . . 3 2 . . 4 . . . . 1 Hover 20 | . . . 4 4 3 . . 1 6 . . 1 1 . Flight . | . . . . . . . . . . . . . . . Utility 63 | . 1 3 2 6 13 3 3 . 18 3 . . 8 3 Device 31 | . . 1 . 1 8 . 3 . 12 2 . . 3 1 Storage 3 | . 1 . . . 1 . . . 1 . . . . . Processor 10 | . . . 2 3 2 1 . . . 1 . . 1 . Hackware 6 | . . 2 . . 1 . . . 1 . . . 2 . Protection 13 | . . . . 2 1 2 . . 4 . . . 2 2 Artifact . | . . . . . . . . . . . . . . . Weapon 31 | . . 1 2 3 3 2 1 1 11 . . . 2 5 Energy Gun . | . . . . . . . . . . . . . . . Energy Cannon . | . . . . . . . . . . . . . . . Ballistic Gun 12 | . . 1 . . . . . . 8 . . . . 3 Ballistic Cannon . | . . . . . . . . . . . . . . . Launcher 1 | . . . . 1 . . . . . . . . . . Special Weapon . | . . . . . . . . . . . . . . . Impact Weapon . | . . . . . . . . . . . . . . . Slashing Weapon 11 | . . . 2 1 2 . . . 2 . . . 2 2 Piercing Weapon 7 | . . . . 1 1 2 1 1 1 . . . . . Special Melee Weapon . | . . . . . . . . . . . . . . . Unidentified Prototypes 6 | . . . . 2 1 . 1 . 1 . . . . 1 Parts Lost 60 | . . 1 . 2 12 1 2 2 9 . . 1 . 30 Power 6 | . . . . . 2 . 1 . . . . . . 3 Propulsion 23 | . . . . . 7 . 1 . 3 . . . . 12 Utility 17 | . . 1 . 2 . 1 . 1 2 . . 1 . 9 Weapon 14 | . . . . . 3 . . 1 4 . . . . 6 Highest Loss Streak 27 | . . 1 . 1 10 1 2 1 3 . . 1 . 27 Average Slot Usage (%) 88 | . 85 94 94 98 92 99 98 55 72 94 94 84 96 73 Engine 8 | . 14 11 9 6 11 13 10 1 3 4 5 5 4 2 Reactor 1 | . . . . . . . . . 4 . . . 3 2 Treads 7 | . 28 22 . . 7 8 11 10 1 . . . . 3 Leg 2 | . . . . . 3 10 4 . 1 . . . . . Wheel 4 | . . . . . 5 13 10 1 9 . . . . . Hover 10 | . . . 32 30 11 . . 1 1 29 29 27 28 15 Device 8 | . . 6 . . 5 . 5 3 17 23 23 19 15 8 Storage 5 | . 14 11 9 7 5 6 5 1 1 5 5 5 4 3 Processor 8 | . . . 7 21 16 14 17 10 . 4 5 5 8 9 Hackware 7 | . . 21 18 11 10 11 5 3 . 5 5 5 12 10 Protection 3 | . . . . 3 . 5 5 3 11 . . . 1 4 Ballistic Gun 9 | . 28 22 1 . . . . . 15 17 17 15 10 3 Slashing Weapon 2 | . . . 16 13 4 . . . . . . . 2 6 Piercing Weapon 3 | . . . . 1 6 12 16 10 . . . . . . Naked Turns 73 | . . . . . . . . 51 22 . . . . . Heaviest Build 74 | 11 28 30 29 38 42 51 54 54 74 61 52 52 69 69 Greatest Support 140 | 40 40 40 32 32 41 26 26 85 70 56 56 66 66 140 Greatest Overweight (x) 6 | . . . . 1 3 1 3 3 4 1 . . 1 6 Average Overweight (x) . | . . . . . . 1 2 . 1 . . . . . Largest Inventory Capacity 15 | 8 15 15 15 15 15 15 15 15 15 15 15 15 15 15 Average Capacity 12 | 8 12 15 15 15 14 15 15 8 6 15 15 15 15 13 Most Carried 15 | 6 7 15 15 15 15 15 15 15 15 15 15 15 15 15 Average Carried 10 | 3 4 7 10 14 12 14 13 8 5 14 15 15 14 11 Final Capacity 15 | 8 15 15 15 15 15 15 15 5 15 15 15 15 15 5 Final Carried 15 | 2 7 14 15 15 14 15 15 5 15 15 15 15 15 4 Class Distribution -------------------- 41% | Scavenger-Mutant 19% | Mutant 14% | Scavenger-Skirmisher 10% | Scavenger-Tank 10% | Hacker-Mutant Dominant Class ---------------- Mutant | -10/Materials Hacker-Mutant | -9/Materials Hacker-Mutant | -8/Materials Mutant | -7/Factory Scavenger-Mutant | -6/Factory Scavenger-Mutant | -6/Extension Scavenger-Mutant | -5/Factory Scavenger-Mutant | -5/Waste Scavenger-Tank | -5/Factory Scavenger-Skirmisher | -5/Upper Caves Scavenger-Skirmisher | -5/Upper Caves Scavenger-Skirmisher | -4/Factory Scavenger-Skirmisher | -3/Research Scavenger-Mutant | -3/Testing Resources | -11 -10 -9 -8 -7 -6 -6 -5 -5 -5 -5 -5 -4 -3 -3 ----------- Run | Scr Mat Mat Mat Fac Fac Ext Fac Was Fac Upp Upp Fac Res Tes Matter Collected 3172 | 176 226 104 . 291 295 140 65 . 1307 89 . 90 346 43 Remotely . | . . . . . . . . . . . . . . . Salvage Created 6386 | . 284 212 . 504 973 1099 290 . 1991 120 . 90 663 160 Parts 338 | . 28 14 . 32 50 54 16 . 93 10 . 3 28 10 Haulers Intercepted 1 | . . . . . . . 1 . . . . . . . Recyclers Shooed 8 | . 1 . . . . 1 . . 5 . . . 1 . Parts Field Recycled . | . . . . . . . . . . . . . . . Retrieved Matter . | . . . . . . . . . . . . . . . Parts Self-Destructed 3 | . . . . . . . . . . . 3 . . . Prevented . | . . . . . . . . . . . . . . . Kills | -11 -10 -9 -8 -7 -6 -6 -5 -5 -5 -5 -5 -4 -3 -3 ------- Run | Scr Mat Mat Mat Fac Fac Ext Fac Was Fac Upp Upp Fac Res Tes Combat Hostiles Destroyed 82 | . 6 4 . 6 14 15 6 . 23 . . 1 5 2 Melee 50 | . . . . 4 14 15 6 . 5 . . . 4 2 Guns 29 | . 6 4 . . . . . . 17 . . 1 1 . AOE 3 | . . . . 2 . . . . 1 . . . . . Classes Destroyed 14 | . 3 3 . 2 2 1 2 . . 1 . . . . Worker 16 | . . . . 4 3 . . . 8 . . . . 1 Builder 4 | . . . . 2 . 1 . . 1 . . . . . Hauler 1 | . . . . . . . 1 . . . . . . . Recycler 11 | . . 1 . 2 2 1 . . 2 . . . 3 . Operator 5 | . 2 . . 2 . . . . . . . . 1 . Watcher 8 | . 1 1 . 1 . 1 . . 3 . . . 1 . Swarmer 22 | . . 2 . 2 6 . 4 . 4 . . . 4 . Grunt 24 | . 6 1 . 2 2 . . . 12 . . . . 1 Brawler 3 | . . . . . 1 . . . 2 . . . . . Sentry 13 | . . 1 . 2 3 4 . . 1 . . 1 1 . Hunter 2 | . . . . . 2 . . . . . . . . . Programmer 7 | . . . . . . . 2 . 4 . . . . 1 Samaritan 2 | . . . . . . . . . . 2 . . . . Thug 4 | . . . . . . 4 . . . . . . . . Savage 3 | . . . . . . 3 . . . . . . . . Butcher 2 | . . . . . . 2 . . . . . . . . Guerrilla 2 | . . . . . . 2 . . . . . . . . Best Kill Streak 8 | . 3 4 . 8 5 5 4 . 8 . . 1 6 1 Combat Bots Only 5 | . 2 2 . 2 5 5 4 . 5 . . 1 4 1 Max Kills in Single Turn 6 | . 1 1 . 6 1 1 1 . 3 1 . 1 1 1 Gunslinging . | . . . . . . . . . . . . . . . Exploded 1 | . . . . 1 . . . . 1 . . . . . Melee 1 | . . . . 1 1 1 1 . 1 . . . 1 1 Uniques/NPCs Destroyed . | . . . . . . . . . . . . . . . Combat | -11 -10 -9 -8 -7 -6 -6 -5 -5 -5 -5 -5 -4 -3 -3 -------- Run | Scr Mat Mat Mat Fac Fac Ext Fac Was Fac Upp Upp Fac Res Tes Damage Taken 11605 | . 458 154 . 561 1507 656 467 191 2746 51 . 122 380 4312 Core 2804 | . 101 6 . 136 459 62 52 191 603 . . . 28 1166 Absorbed by Shields 54 | . . . . . . 54 . . . . . . . . Core Remaining (%) 73 | 100 59 98 100 80 . 38 . . . . 15 100 . . Volleys Fired 147 | . 38 17 . 4 . . . . 73 6 . 2 3 4 Largest 3 | . 2 2 . 1 . . . . 3 3 . 3 3 3 Hottest 105 | . 40 43 . 39 . . . . 105 103 . 103 103 101 Shots Fired 328 | . 76 34 . 4 . . . . 171 18 . 6 9 10 Gun 324 | . 76 34 . . . . . . 171 18 . 6 9 10 Cannon . | . . . . . . . . . . . . . . . Launcher 4 | . . . . 4 . . . . . . . . . . Special . | . . . . . . . . . . . . . . . Kinetic 324 | . 76 34 . . . . . . 171 18 . 6 9 10 Thermal . | . . . . . . . . . . . . . . . Explosive 4 | . . . . 4 . . . . . . . . . . Electromagnetic . | . . . . . . . . . . . . . . . Robot Hit Streak 13 | . 9 6 . 2 . . . . 13 10 . 1 4 4 Robot Miss Streak 6 | . 6 2 . 2 . . . . 4 3 . 1 1 3 Penetration Max 3 | . . . . . . . . . 3 . . . . . Secondary Targets 3 | . . 1 . . . . . . 2 . . . . . Max Gunslinging Chain 1 | . . 1 . . . . . . 1 . . . . . Shots Hit Robots 373 | . 48 21 1 21 42 38 15 . 126 12 . 3 25 21 Core Hits 221 | . 23 10 . 23 26 23 10 . 80 5 . 1 14 6 Critical Kills 23 | . . . . . . . . . 18 2 . 1 2 . Critical Parts Destroyed 30 | . . . . . . . . . 25 3 . 1 . 1 Critical Strikes 66 | . . . . 2 1 3 2 . 44 5 . 2 3 4 Destroy 54 | . . . . . . . . . 44 5 . 2 2 1 Sever 5 | . . . . 1 . . . . . . . . 1 3 Puncture 7 | . . . . 1 1 3 2 . . . . . . . Melee Attacks 250 | . . . 1 29 62 64 23 . 17 . . . 24 30 Impact . | . . . . . . . . . . . . . . . Slashing 87 | . . . 1 21 9 1 . . 1 . . . 24 30 Piercing 163 | . . . . 8 53 63 23 . 16 . . . . . Sneak Attacks 36 | . . . 1 2 6 22 1 . 1 . . . 2 1 Combat Hostiles . | . . . . . . . . . . . . . . . Follow-up Attacks 21 | . . . . 5 5 5 3 . . . . . . 3 Damage Inflicted 12284 | . 500 248 98 1390 1671 2402 511 . 3581 92 . 22 965 804 Guns 2180 | . 500 248 . . . . . . 1223 92 . 22 44 51 Cannons . | . . . . . . . . . . . . . . . Explosions 2570 | . . . . 602 . . . . 1968 . . . . . Melee 7534 | . . . 98 788 1671 2402 511 . 390 . . . 921 753 Ramming . | . . . . . . . . . . . . . . . Kinetic 2180 | . 500 248 . . . . . . 1223 92 . 22 44 51 Thermal 1291 | . . . . 144 . . . . 1147 . . . . . Explosive 1279 | . . . . 458 . . . . 821 . . . . . Electromagnetic . | . . . . . . . . . . . . . . . Impact . | . . . . . . . . . . . . . . . Slashing 2580 | . . . 98 617 159 32 . . . . . . 921 753 Piercing 4954 | . . . . 171 1512 2370 511 . 390 . . . . . Highest Corruption 29 | . . . . . 2 2 4 21 29 29 29 . . 13 Average Corruption 16 | . . . . . 2 2 3 14 25 29 29 . . 6 Corruption Purged 4 | . . . . . . . . . 4 . . . . . Effects 108 | . . . . . 1 6 1 5 71 16 3 . . 5 Message Errors 26 | . . . . . 1 4 1 . 13 5 1 . . 1 Matter Fused 23 | . . . . . . . . 2 15 2 1 . . 3 Heat Flow Errors 11 | . . . . . . 1 . 1 6 2 1 . . . Energy Discharges 7 | . . . . . . . . 1 3 3 . . . . Data Loss (minor) 15 | . . . . . . 1 . 1 12 1 . . . . Data Loss (major) 3 | . . . . . . . . . 2 1 . . . . Misfires 3 | . . . . . . . . . 2 1 . . . . Alerts 2 | . . . . . . . . . 2 . . . . . Misdirections 1 | . . . . . . . . . 1 . . . . . Weapon Failures 17 | . . . . . . . . . 15 1 . . . 1 Overload Shots . | . . . . . . . . . . . . . . . Overflow Damage 1172 | . . . 58 154 116 308 7 . 329 . . . 169 31 Projectiles . | . . . . . . . . . . . . . . . Explosions 340 | . . . . 11 . . . . 329 . . . . . Melee 832 | . . . 58 143 116 308 7 . . . . . 169 31 Knockbacks . | . . . . . . . . . . . . . . . Impact . | . . . . . . . . . . . . . . . Kinetic . | . . . . . . . . . . . . . . . Secondary . | . . . . . . . . . . . . . . . Self-Inflicted Damage 392 | . . . . 22 . . . . 370 . . . . . Shots 6 | . . . . 1 . . . . 5 . . . . . Rammed . | . . . . . . . . . . . . . . . Targets Rammed . | . . . . . . . . . . . . . . . Kicked . | . . . . . . . . . . . . . . . Crushed . | . . . . . . . . . . . . . . . Highest Temperature 431 | . 18 6 . 7 2 88 . 192 431 351 151 52 7 . Average Temperature 139 | . 7 5 . 4 2 50 . 100 187 94 50 31 7 . Received Heat Transfer 1811 | . 237 30 . 171 159 245 . . 564 . . 27 27 351 Effects 11 | . . . . . . . . . 9 2 . . . . Shutdowns 4 | . . . . . . . . . 4 . . . . . Energy Bleed 4 | . . . . . . . . . 2 2 . . . . Interference 2 | . . . . . . . . . 2 . . . . . Matter Decay 1 | . . . . . . . . . 1 . . . . . Siege Activations . | . . . . . . . . . . . . . . . Robots Corrupted . | . . . . . . . . . . . . . . . Combat Hostiles . | . . . . . . . . . . . . . . . Parts Fried . | . . . . . . . . . . . . . . . Impact Corruptions . | . . . . . . . . . . . . . . . Robots Melted . | . . . . . . . . . . . . . . . Combat Hostiles . | . . . . . . . . . . . . . . . Parts Melted 3 | . . . . . . . . . 3 . . . . . Heat Transferred 950 | . . . . 100 . . . . 850 . . . . . Parts Sabotaged . | . . . . . . . . . . . . . . . Parts Stolen . | . . . . . . . . . . . . . . . Parts Stripped . | . . . . . . . . . . . . . . . Power Chain Reactions . | . . . . . . . . . . . . . . . Missiles Intercepted . | . . . . . . . . . . . . . . . Alert | -11 -10 -9 -8 -7 -6 -6 -5 -5 -5 -5 -5 -4 -3 -3 ------- Run | Scr Mat Mat Mat Fac Fac Ext Fac Was Fac Upp Upp Fac Res Tes Peak Influence 1124 | . 161 148 39 419 386 365 310 108 1124 . . 417 397 275 Initial 352 | . . 1 . 17 116 175 178 108 47 . . 352 218 175 Average 298 | . 45 59 18 163 297 222 259 84 723 . . 361 267 165 Maximum Alert Level 4 | . . . . 2 1 1 1 . 4 . . 2 1 1 Low Security (%) 42 | 100 100 100 100 59 22 42 17 100 9 . . . . 68 Level 1 43 | . . . . 39 77 57 82 . 21 . . 92 99 31 Level 2 3 | . . . . 1 . . . . 17 . . 7 . . Level 3 6 | . . . . . . . . . 33 . . . . . Level 4 3 | . . . . . . . . . 17 . . . . . Level 5 . | . . . . . . . . . . . . . . . High Security . | . . . . . . . . . . . . . . . Max Security . | . . . . . . . . . . . . . . . Squads Dispatched 22 | . 3 1 . 3 1 1 1 . 3 . . 1 2 6 Investigation 5 | . 1 . . . 1 1 . . 1 . . 1 . . Extermination 4 | . . . . . . . 1 . 1 . . . 1 1 Reinforcement 11 | . 2 1 . 2 . . . . 1 . . . 1 4 Assault . | . . . . . . . . . . . . . . . Garrison 2 | . . . . 1 . . . . . . . . . 1 Intercept . | . . . . . . . . . . . . . . . Construction Impeded 1 | . . . . 1 . . . . . . . . . . Haulers Reinforced 1 | . . . . . . . . . 1 . . . . . Cargo Convoy Interrupts . | . . . . . . . . . . . . . . . Stealth | -11 -10 -9 -8 -7 -6 -6 -5 -5 -5 -5 -5 -4 -3 -3 --------- Run | Scr Mat Mat Mat Fac Fac Ext Fac Was Fac Upp Upp Fac Res Tes Distress Signals 7 | . . 2 1 . . 1 . . 2 . . . . 1 Communications Jammed 23 | . . . . . . . . . 6 . . . 1 16 Distress Signals 21 | . . . . . . . . . 6 . . . . 15 Times Spotted 153 | . 10 8 2 11 18 19 6 6 41 . . 5 12 15 Peak Tracking Total 12 | . 2 6 4 4 4 5 3 6 12 . . 5 4 9 Tactical Retreats 18 | . . 1 . . 2 . . . 12 . . 1 1 1 Traps | -11 -10 -9 -8 -7 -6 -6 -5 -5 -5 -5 -5 -4 -3 -3 ------- Run | Scr Mat Mat Mat Fac Fac Ext Fac Was Fac Upp Upp Fac Res Tes Traps Triggered 8 | . 2 . . 1 1 2 1 . . 1 . . . . Indirectly . | . . . . . . . . . . . . . . . Trap Hack Attempts . | . . . . . . . . . . . . . . . Triggered . | . . . . . . . . . . . . . . . Disarmed . | . . . . . . . . . . . . . . . Reprogrammed . | . . . . . . . . . . . . . . . Reused . | . . . . . . . . . . . . . . . Traps Extracted . | . . . . . . . . . . . . . . . Installed . | . . . . . . . . . . . . . . . Triggered . | . . . . . . . . . . . . . . . Machines | -11 -10 -9 -8 -7 -6 -6 -5 -5 -5 -5 -5 -4 -3 -3 ---------- Run | Scr Mat Mat Mat Fac Fac Ext Fac Was Fac Upp Upp Fac Res Tes Machines Disabled 23 | . . . . 3 . . . . 20 . . . . . Max in Single Turn 4 | . . . . 1 . . . . 4 . . . . . Garrison Access 2 | . . . . 1 1 . . . . . . . . . Machines Sabotaged . | . . . . . . . . . . . . . . . Garrisons Compromised . | . . . . . . . . . . . . . . . Overloaded Fab Kills . | . . . . . . . . . . . . . . . Fab Network Shutdowns . | . . . . . . . . . . . . . . . Hacking | -11 -10 -9 -8 -7 -6 -6 -5 -5 -5 -5 -5 -4 -3 -3 --------- Run | Scr Mat Mat Mat Fac Fac Ext Fac Was Fac Upp Upp Fac Res Tes Machines Accessed 41 | . 4 1 3 2 8 11 . . 2 1 . 1 7 1 Terminals 28 | . 4 1 2 1 4 11 . . 1 . . . 4 . Fabricators 3 | . . . . . 1 . . . 1 . . . 1 . Repair Stations 1 | . . . . . . . . . . . . . 1 . Recycling Units 1 | . . . 1 . . . . . . . . . . . Scanalyzers 4 | . . . . . 2 . . . . . . . 1 1 Garrison Access 3 | . . . . 1 1 . . . . . . 1 . . Total Hacks 120 | . 14 5 8 3 26 29 . . 3 1 . 2 27 2 Successful 76 | . 9 3 7 2 18 20 . . . 1 . . 16 . Failed 44 | . 5 2 1 1 8 9 . . 3 . . 2 11 2 Catastrophic 8 | . . . . . 1 2 . . 2 . . 1 2 . Database Lockouts . | . . . . . . . . . . . . . . . Manual 39 | . 5 . 3 2 5 14 . . 1 . . 1 8 . Terminals 85 | . 14 5 7 2 11 29 . . 2 . . . 15 . Fabricators 8 | . . . . . 3 . . . 1 . . . 4 . Repair Stations 2 | . . . . . . . . . . . . . 2 . Recycling Units 1 | . . . 1 . . . . . . . . . . . Scanalyzers 19 | . . . . . 11 . . . . . . . 6 2 Garrison Access 4 | . . . . 1 1 . . . . . . 2 . . Terminal Hacks 36 | . 5 3 4 . 5 15 . . . 1 . . 3 . Part Schematic 4 | . . . . . 1 2 . . . . . . 1 . Robot Analysis 1 | . . . . . . . . . . . . . 1 . Prototype ID Bank 5 | . . 1 1 . 1 2 . . . . . . . . Open Door 6 | . . . . . . 5 . . . 1 . . . . Branch Access Points 2 | . . . 1 . . . . . . . . . 1 . Machine Index 1 | . . . . . 1 . . . . . . . . . Terminal Index 1 | . 1 . . . . . . . . . . . . . Alert Level 3 | . 1 . 1 . . 1 . . . . . . . . Unreport Threat 6 | . 1 2 . . . 3 . . . . . . . . Locate Traps 2 | . 1 . . . 1 . . . . . . . . . Recall Investigation 1 | . . . . . 1 . . . . . . . . . Registered Prototypes 1 | . . . . . . 1 . . . . . . . . Zone Layout 3 | . 1 . 1 . . 1 . . . . . . . . Fabricator Hacks 3 | . . . . . 1 . . . . . . . 2 . Load Schematic 2 | . . . . . 1 . . . . . . . 1 . Build 1 | . . . . . . . . . . . . . 1 . Repair Station Hacks 2 | . . . . . . . . . . . . . 2 . Scan Component 1 | . . . . . . . . . . . . . 1 . Repair 1 | . . . . . . . . . . . . . 1 . Recycling Unit Hacks 1 | . . . 1 . . . . . . . . . . . Report Inventory 1 | . . . 1 . . . . . . . . . . . Scanalyzer 15 | . . . . . 9 . . . . . . . 6 . Insert Component 8 | . . . . . 5 . . . . . . . 3 . Analyze 7 | . . . . . 4 . . . . . . . 3 . Garrison Access Hacks 2 | . . . . 1 1 . . . . . . . . . Seal Access 2 | . . . . 1 1 . . . . . . . . . Unauthorized Hacks 17 | . 4 . 2 1 2 5 . . . . . . 3 . Terminals 17 | . 4 . 2 1 2 5 . . . . . . 3 . Assimilate 3 | . . . . . 1 . . . . . . . 2 . Botnet 14 | . 4 . 2 1 1 5 . . . . . . 1 . Fabricators . | . . . . . . . . . . . . . . . Repair Stations . | . . . . . . . . . . . . . . . Recycling Units . | . . . . . . . . . . . . . . . Scanalyzers . | . . . . . . . . . . . . . . . Garrison Access . | . . . . . . . . . . . . . . . Data Cores Recovered 1 | . . . . . . 1 . . . . . . . . Used 1 | . . . . . . 1 . . . . . . . . Hacking Detections 32 | . 4 1 2 1 7 7 . . 2 . . 1 6 1 Full Trace Events 5 | . . 1 . . 1 1 . . 1 . . 1 . . Feedback Events . | . . . . . . . . . . . . . . . Feedback Blocked . | . . . . . . . . . . . . . . . Robot Schematics Acquired . | . . . . . . . . . . . . . . . Robots Built . | . . . . . . . . . . . . . . . Matter . | . . . . . . . . . . . . . . . Time . | . . . . . . . . . . . . . . . Total Robot Build Rating . | . . . . . . . . . . . . . . . Part Schematics Acquired 11 | . . . . . 5 2 . . . . . . 4 . Parts Built 1 | . . . . . . . . . . . . . 1 . Matter 190 | . . . . . . . . . . . . . 190 . Time 47 | . . . . . . . . . . . . . 47 . Total Part Build Rating 5 | . . . . . . . . . . . . . 5 . Parts Repaired 1 | . . . . . . . . . . . . . 1 . Time 62 | . . . . . . . . . . . . . 62 . Parts Recycled . | . . . . . . . . . . . . . . . Recycled Matter . | . . . . . . . . . . . . . . . Retrieved Matter . | . . . . . . . . . . . . . . . Retrieved Components . | . . . . . . . . . . . . . . . Parts Scanalyzed 7 | . . . . . 4 . . . . . . . 3 . Part Schematics Acquired 7 | . . . . . 4 . . . . . . . 3 . Parts Damaged . | . . . . . . . . . . . . . . . Bothacking | -11 -10 -9 -8 -7 -6 -6 -5 -5 -5 -5 -5 -4 -3 -3 ------------ Run | Scr Mat Mat Mat Fac Fac Ext Fac Was Fac Upp Upp Fac Res Tes Used RIF Installer . | . . . . . . . . . . . . . . . Robots Hacked . | . . . . . . . . . . . . . . . Non-combat . | . . . . . . . . . . . . . . . Combat . | . . . . . . . . . . . . . . . Robot Hacks Applied . | . . . . . . . . . . . . . . . Relay Couplers Released . | . . . . . . . . . . . . . . . Robots Rewired . | . . . . . . . . . . . . . . . Allies Hacked . | . . . . . . . . . . . . . . . Hacks Repelled . | . . . . . . . . . . . . . . . Allies | -11 -10 -9 -8 -7 -6 -6 -5 -5 -5 -5 -5 -4 -3 -3 -------- Run | Scr Mat Mat Mat Fac Fac Ext Fac Was Fac Upp Upp Fac Res Tes Total Allies 11 | . . . . . 1 8 . . . . 1 . 1 . Largest Group 4 | . . . . . 1 4 3 1 . . 1 . 1 . Highest-Rated Group 249 | . . . . . 10 249 208 21 . . 165 . 26 . Highest-Rated Ally 165 | . . . . . 10 156 156 21 . . 165 . 26 . Total Orders . | . . . . . . . . . . . . . . . Ally Attacks 69 | . . . . . . 68 1 . . . . . . . Total Damage 1539 | . . . . . . 1539 . . . . . . . . Kills 15 | . . . . . . 15 . . . . . . . . Allies Corrupted . | . . . . . . . . . . . . . . . Allies Melted . | . . . . . . . . . . . . . . . Intel | -11 -10 -9 -8 -7 -6 -6 -5 -5 -5 -5 -5 -4 -3 -3 ------- Run | Scr Mat Mat Mat Fac Fac Ext Fac Was Fac Upp Upp Fac Res Tes Robot Analysis Total 1 | . . . . . . . . . . . . . 1 . Derelict Logs Recovered . | . . . . . . . . . . . . . . . Drone Launches . | . . . . . . . . . . . . . . . Drone Recoveries . | . . . . . . . . . . . . . . . Exploration | -11 -10 -9 -8 -7 -6 -6 -5 -5 -5 -5 -5 -4 -3 -3 ------------- Run | Scr Mat Mat Mat Fac Fac Ext Fac Was Fac Upp Upp Fac Res Tes Turns Passed 5706 | 8 599 310 95 455 714 752 326 139 1087 339 83 40 507 252 Spaces Moved 4887 | 3 286 134 171 760 670 530 221 156 596 464 107 65 571 153 Core 195 | . . . . . 10 . . 101 61 . . . . 23 Treads 518 | 3 286 134 . . 3 . . 22 64 . . . . 6 Legs 58 | . . . . . 58 . . . . . . . . . Wheels 1428 | . . . . . 208 530 221 33 429 . . . . 7 Hover 2688 | . . . 171 760 391 . . . 42 464 107 65 571 117 Flight . | . . . . . . . . . . . . . . . Fastest Speed 34 | 160 160 160 38 38 34 105 105 50 48 48 48 40 40 40 Average Speed 76 | 160 160 160 38 41 68 105 121 86 105 50 48 46 40 62 Slowest Speed 350 | 160 160 160 38 106 200 105 145 163 160 110 48 48 105 350 Overloaded Moves . | . . . . . . . . . . . . . . . Propulsion Burnouts . | . . . . . . . . . . . . . . . Robots Hopped . | . . . . . . . . . . . . . . . Cave-ins Triggered 1 | . . . . . 1 . . . . . . . . . Exploration Rate (%) 28 | 1 62 18 22 18 21 67 6 75 18 67 17 2 15 21 Regions Visited 14 Branch Regions 4 Pre-discovered Areas . | . . . . . . . . . . . . . . . Known Exits Taken 6 | . . . . . 1 1 . . . 1 1 1 1 . Unknown Exits Taken 6 | 1 1 1 1 1 . . . . 1 . . . . . Scrap Searched 2 | . . . . . . . . . . 2 . . . . Spaces Dug 21 | . . . . . 9 12 . . . . . . . . Terrain Destroyed 214 | . . . . 32 9 12 . . 159 2 . . . . Melee 21 | . . . . . 9 12 . . . . . . . . Projectile . | . . . . . . . . . . . . . . . AOE 185 | . . . . 32 . . . . 153 . . . . . Terrain Rammed . | . . . . . . . . . . . . . . . Walls Destroyed . | . . . . . . . . . . . . . . . Machines Disabled . | . . . . . . . . . . . . . . . Actions | -11 -10 -9 -8 -7 -6 -6 -5 -5 -5 -5 -5 -4 -3 -3 --------- Run | Scr Mat Mat Mat Fac Fac Ext Fac Was Fac Upp Upp Fac Res Tes Total 6222 | 8 361 199 202 859 838 648 254 159 883 554 138 68 800 251 Wait 561 | . 20 30 . 26 56 16 1 . 98 76 32 1 171 34 Move 4874 | 2 285 133 170 759 669 529 221 155 595 463 106 64 570 153 Hop . | . . . . . . . . . . . . . . . Pick Up 134 | . 10 12 13 14 23 9 6 1 32 2 . . 11 1 Fast Attach 41 | . . . . 7 6 3 . 2 18 . . 1 2 2 Attach 74 | 2 1 3 8 5 12 2 5 . 21 1 . . 5 9 Detach 5 | . . . . . . . . . 5 . . . . . Swap 56 | . 2 2 1 7 12 7 2 . 7 3 . . 7 6 Drop 92 | 4 5 2 9 16 7 14 3 1 17 3 . . 9 2 Fire 147 | . 38 17 . 4 . . . . 73 6 . 2 3 4 Melee 207 | . . . 1 21 53 52 16 . 17 . . . 22 25 Ram . | . . . . . . . . . . . . . . . Kick . | . . . . . . . . . . . . . . . Crush . | . . . . . . . . . . . . . . . Escape Stasis 31 | . . . . . . 16 . . . . . . . 15 Rewire . | . . . . . . . . . . . . . . . Trap . | . . . . . . . . . . . . . . . Miscellaneous . | . . . . . . . . . . . . . . . Route ------- -11/Scrapyard -10/Materials (discovered 2 exits: *Mat / [*Min]) -9/Materials -8/Materials (discovered 2 exits: *Fac / Sto) -7/Factory (discovered 2 exits: *Fac x2) -6/Factory (discovered 2 exits: *Fac / *Ext) -6/Extension (discovered 2 exits: *Fac / *Cet) -5/Factory -5/Waste -5/Factory -5/Upper Caves -5/Upper Caves -4/Factory -3/Research (discovered 3 exits: Arm / *Tes x2) -3/Testing History --------- Turn | Location | Event 5 | -11/Scrapyard | Discovered new exit (range 3) 9 | -11/Scrapyard | Entered Materials 308 | -10/Materials | Build established: Mutant 308 | -10/Materials | Discovered new exit (range 8) 422 | -10/Materials | Discovered new exit (range 9) 608 | -10/Materials | Entered another Materials area 608 | -9/Materials | Evolved 2 slots: Utility x2 894 | -9/Materials | Discovered new exit (range 15) 918 | -9/Materials | Entered another Materials area 918 | -8/Materials | Evolved 2 slots: Propulsion x2 943 | -8/Materials | Identified exit to Storage 1008 | -8/Materials | Discovered new exit (range 10) 1013 | -8/Materials | Entered Factory 1013 | -7/Factory | Evolved 2 slots: Utility x2 1093 | -7/Factory | Discovered new exit (range 11) 1194 | -7/Factory | Discovered new exit (range 14) 1340 | -7/Factory | Garrison activated, responded to threat 1468 | -7/Factory | Entered another Factory area 1468 | -6/Factory | Evolved 2 slots: Power x1, Propulsion x1 1500 | -6/Factory | Discovered new exit (range 4) 1501 | -6/Factory | Identified exit to Factory 1762 | -6/Factory | Lost 10 parts (2p6n2w) 1818 | -6/Factory | Build established: Scavenger-Mutant 2130 | -6/Factory | Crushed by falling debris 2130 | -6/Factory | Core integrity fell below 50% 2160 | -6/Factory | Discovered new exit (range 16) 2181 | -6/Factory | Identified exit to Extension 2182 | -6/Factory | Entered Extension 2258 | -6/Extension | Rescued a captive Derelict 2258 | -6/Extension | Rescued a captive Derelict 2359 | -6/Extension | Rescued a captive Derelict 2359 | -6/Extension | Rescued a captive Derelict 2432 | -6/Extension | Disrupted transfer network 2528 | -6/Extension | Rescued A7 2539 | -6/Extension | Rescued a captive Derelict 2539 | -6/Extension | Rescued a captive Derelict 2649 | -6/Extension | Rescued a captive Derelict 2650 | -6/Extension | Rescued a captive Derelict 2913 | -6/Extension | Discovered exit to Factory (range 10) 2914 | -6/Extension | Discovered new exit (range 6) 2929 | -6/Extension | Identified exit to Cetus 2934 | -6/Extension | Entered Factory 2934 | -5/Factory | Accompanied by 3 allies (A7) 2934 | -5/Factory | Evolved 2 slots: Utility x1, Weapon x1 3260 | -5/Factory | Sucked down chute 3260 | -5/Factory | Entered Waste 3265 | -5/Waste | 1 allies followed down the chute 3268 | -5/Waste | Found Prototype Slashing Weapon 3275 | -5/Waste | EMP discharged 3275 | -5/Waste | System corruption reached 10% 3292 | -5/Waste | Spotted C-40 Crusher 3294 | -5/Waste | Spotted C-40 Crusher 3295 | -5/Waste | Spotted C-40 Crusher 3297 | -5/Waste | Spotted C-40 Crusher 3310 | -5/Waste | Crushed by Compactor (1 part destroyed, 2 dropped) 3346 | -5/Waste | Spotted C-40 Crusher 3347 | -5/Waste | Released all parts (14) 3349 | -5/Waste | Crushed by Compactor (1 part destroyed) 3360 | -5/Waste | Spotted C-40 Crusher 3375 | -5/Waste | EMP discharged 3391 | -5/Waste | Discovered new exit (range 16) 3399 | -5/Waste | Entered Factory 3399 | -5/Factory | Identified Vibroblade 3451 | -5/Factory | Core integrity fell below 50% 4051 | -5/Factory | Lost 3 parts (2n1u) 4380 | -5/Factory | Core integrity fell below 20% 4448 | -5/Factory | Discovered new exit (range 7) 4486 | -5/Factory | Entered Upper Caves 4733 | -5/Upper Caves | Build established: Scavenger-Skirmisher 4762 | -5/Upper Caves | Encountered a Warlord checkpoint 4820 | -5/Upper Caves | Discovered new exit (range 9) 4825 | -5/Upper Caves | Identified exit to Upper Caves 4825 | -5/Upper Caves | Entered another Upper Caves area 4904 | -5/Upper Caves | Discovered new exit (range 5) 4908 | -5/Upper Caves | Identified exit to Factory 4908 | -5/Upper Caves | Entered Factory 4908 | -4/Factory | Evolved 2 slots: Propulsion x1, Utility x1 4931 | -4/Factory | Discovered new exit (range 8) 4947 | -4/Factory | Identified exit to Research 4948 | -4/Factory | Entered Research 4948 | -3/Research | Evolved 2 slots: Utility x2 5003 | -3/Research | Fabricated Adv. Sensor Array (x1) 5195 | -3/Research | Repaired Lgt. Antimatter Reactor 5397 | -3/Research | Identified exit to Armory 5397 | -3/Research | Identified exit to Testing 5455 | -3/Research | Entered Testing 5572 | -3/Testing | Build established: Scavenger-Mutant 5582 | -3/Testing | Spotted PY-FMPSC6XZRW 5583 | -3/Testing | Scanned by Researcher 5627 | -3/Testing | Garrison activated, responded to threat 5666 | -3/Testing | System corruption reached 10% 5689 | -3/Testing | Core integrity fell below 50% 5692 | -3/Testing | Lost 27 parts (3p11n8u5w) 5706 | -3/Testing | Core integrity fell below 20% 5707 | -3/Testing | Self-destructed Last Messages --------------- P-80 Master destroyed. Penetrated by Slug. System corrupted: Matter fused (-8). C-55 Analyst calls for reinforcements. ALERT: Hostile activity reported, dispatching reinforcements to area. Held in stasis. C-55 Analyst is analyzing... Held in stasis. C-55 Analyst is analyzing... K-01 Serf collects debris. Penetrated by Slug. Slug penetrates Wall. Great Axe destroyed. ALERT: Rogue bot located, Programmers report to Testing Zone 5R. Slug penetrates Wall. Penetrated by Slug. K-01 Serf collects debris. Penetrated by Slug. Held in stasis. C-55 Analyst is analyzing... Map ----- +----------------------------------------------------+ | ?????????????????????????????????????????????????? | | ?????????????????????????????????????????????????? | | ?????????????????????????????????????????????????? | | ?????????????????????????????????????????????????? | | ?????????????????????????????????????????????????? | | ?????????????????????????????????????????????????? | | ?????????????????????????????????????????????????? | | ##########???????????????????????????????????????? | | #???????????????????????????????????????? | | #???????????????????????????????????????? | | ##########????? ??????????????????????? | | # #????? ????????????????????? | | """ # """ #????? R ????????????????????? | | """"""" + """ #????? ?????????????????????? | | """"" " """ #????? ?????????????????????? | | """ "" # "" #????? ?????????????????????? | | "" "" # !""" #????? ??????????????????????? | | #!/""" #????? ??????????????????????? | | # """ ] #?????#c#??????????????????????? | | # #?????# #??????????????????????? | | ###/###########/######### #??????????????????????? | | RR #??????????????????????? | | % ^ A k=#??????????????????????? | | ^ RYYc|#??????????????????????? | | h!!%#??????????????????????? | | # ##################h!@#####??????????????????? | | # #???????????# = #??????????????????? | | # #???????????# """"" #??????????????????? | | # #???????????# """"" #??????????????????? | | # #???????????# """"" #??????????????????? | | # #???????????# #??????????????????? | | # #???????????# #??????????????????? | | # #???????????# """" #??????????????????? | | # #???????????# """"" ;??????????????????? | | # #???????????# """" # ?????????????????? | | # #???????????# """" ##?????????????????? | | # #?????????????? #??????????????????? | | # /?????????????? #??????????????????? | | # #??????????????###########??????????????????? | | #### #???????????????????????????????????????????? | | ???? #???????????????????????????????????????????? | | ???? ????????????????????????????????????????????? | | ?????????????????????????????????????????????????? | | ?????????????????????????????????????????????????? | | ?????????????????????????????????????????????????? | | ?????????????????????????????????????????????????? | | ?????????????????????????????????????????????????? | | ?????????????????????????????????????????????????? | | ?????????????????????????????????????????????????? | | ?????????????????????????????????????????????????? | +----------------------------------------------------+ Best States ------------- Heat Dissipation 78 Energy Generation 37 Energy Capacity 500 Matter Stores 300 Matter Capacity 300 Sight Range 16 Robot Scan Range 16 Terrain Scan Range 20 Terrain Scan Density 10 ECM Strength 2 Jamming Range 12 Cloak Strength 2 Additional Mass Support 12 Armor Coverage 675 Propulsion Shielding 66 Evasion (%) 58 Melee Accuracy 15 Core Analysis 6 Armor Integrity Analysis 40 Recoil Reduction 4 Offensive Hacking 20 Defensive Hacking 14 Item Schematics ----------------- Gravmag System | -6/Factory | Scanalyzed Hacking Suite | -6/Factory | Scanalyzed Imp. Medium Armor Plating | -6/Factory | Scanalyzed Lgt. Angular Momentum Engine | -6/Factory | Scanalyzed Adv. Sensor Array | -6/Factory | Hacked Imp. Armor Integrity Analyzer | -6/Extension | Hacked Mic. Fission Core | -6/Extension | Hacked Biometal Medium Treads | -3/Research | Hacked Centrium Wheel | -3/Research | Scanalyzed Great Axe | -3/Research | Scanalyzed Hyp. Gauss Rifle | -3/Research | Scanalyzed Robot Schematics ------------------ None Fabricated ------------ Adv. Sensor Array | x1 | -3/Research Alien Tech Used ----------------- None Achievements -------------- None Challenges ------------ None Game ------ Seed BattleSeismicMantle Manual? 0 Play Time 01:13:06 Cumulative 231.7 hours Start 2021.07.09 @ 20:46:01 End 2021.07.09 @ 21:55:59 Sessions 1 Manual Loads 0 Difficulty Rogue Special Mode None Game No. 287 Rogue 287 Adventurer 0 Explorer 0 Win Type - Total 3 Types 3/0/0/0/0/0/0/0/0 Lore% 63 Gallery% 80 Achievement% 58 Wizard Run 0 Options --------- ASCII 0 Keyboard 0 Movement Mouse Keybinds 1 Fullscreen 2 Font 24/Smallcaps Map View 76x50 Tactical HUD 1 Map Filters NONE Filters NONE Steam 1 RUN: b4d28a59-9084-43d0-812e-0563a0d062ee